[Event "Late-Titled-Tuesday-Blitz-February-27-2024"]
[Site "Chess.com"]
[Date "2024.02.27"]
[Round "4"]
[White "Bugcrusher"]
[Black "Boninknights"]
[Result "0-1"]
[WhiteElo "2570"]
[BlackElo "2399"]
[TimeControl "180+1"]
[EndTime "14:36:53 PST"]
[Termination "Boninknights won by resignation"]

1. d4 {[%clk 0:03:00]} 1... Nf6 {[%clk 0:02:55.8]} 2. Bf4 {[%clk 0:02:59]} 2...
d5 {[%clk 0:02:54.1]} 3. e3 {[%clk 0:02:58.9]} 3... c5 {[%clk 0:02:53.3]} 4. Nf3
{[%clk 0:02:57.8]} 4... Nc6 {[%clk 0:02:53.2]} 5. Nbd2 {[%clk 0:02:56.7]} 5...
Bg4 {[%clk 0:02:51.9]} 6. c3 {[%clk 0:02:54.6]} 6... e6 {[%clk 0:02:50.5]} 7. h3
{[%clk 0:02:53.7]} 7... Bxf3 {[%clk 0:02:48.4]} 8. Nxf3 {[%clk 0:02:53.6]} 8...
Bd6 {[%clk 0:02:47.7]} 9. Bxd6 {[%clk 0:02:53.3]} 9... Qxd6 {[%clk 0:02:46.8]}
10. Be2 {[%clk 0:02:33.7]} 10... O-O {[%clk 0:02:45.5]} 11. O-O {[%clk
0:02:33.5]} 11... e5 {[%clk 0:02:44.1]} 12. dxe5 {[%clk 0:02:32.6]} 12... Nxe5
{[%clk 0:02:43.1]} 13. Nxe5 {[%clk 0:02:33.1]} 13... Qxe5 {[%clk 0:02:42.3]} 14.
Bf3 {[%clk 0:02:33.1]} 14... Rad8 {[%clk 0:02:40.6]} 15. Qb3 {[%clk 0:02:30.5]}
15... Rd7 {[%clk 0:02:39]} 16. Rfd1 {[%clk 0:02:30]} 16... Rfd8 {[%clk
0:02:38.1]} 17. Qb5 {[%clk 0:02:17.6]} 17... b6 {[%clk 0:02:36.5]} 18. Rd2
{[%clk 0:02:12.1]} 18... h5 {[%clk 0:02:34.2]} 19. Rad1 {[%clk 0:02:11]} 19...
g5 {[%clk 0:02:29.7]} 20. g3 {[%clk 0:02:07.9]} 20... g4 {[%clk 0:02:28.1]} 21.
hxg4 {[%clk 0:02:07.2]} 21... hxg4 {[%clk 0:02:27.2]} 22. Bg2 {[%clk 0:02:06.6]}
22... Ne4 {[%clk 0:02:27.2]} 23. Bxe4 {[%clk 0:01:44.4]} 23... Qxe4 {[%clk
0:02:26]} 24. c4 {[%clk 0:01:34.8]} 24... Kg7 {[%clk 0:02:21.8]} 25. Rxd5 {[%clk
0:01:16.9]} 25... Rh8 {[%clk 0:02:19.8]} 26. Kf1 {[%clk 0:01:09.9]} 26... Rh1+
{[%clk 0:02:08.9]} 27. Ke2 {[%clk 0:01:09.7]} 27... Qf3+ {[%clk 0:02:08.9]} 0-1

[Event "Late-Titled-Tuesday-Blitz-February-27-2024"]
[Site "Chess.com"]
[Date "2024.02.27"]
[Round "4"]
[White "GHANDEEVAM2003"]
[Black "Sokoloco"]
[Result "1-0"]
[WhiteElo "3050"]
[BlackElo "2791"]
[TimeControl "180+1"]
[EndTime "14:37:01 PST"]
[Termination "GHANDEEVAM2003 won by resignation"]

1. b3 {[%clk 0:03:00.9]} 1... Nf6 {[%clk 0:02:58.5]} 2. Bb2 {[%clk 0:03:01.8]}
2... g6 {[%clk 0:02:59.4]} 3. g3 {[%clk 0:03:02]} 3... Bg7 {[%clk 0:02:58.4]} 4.
Bg2 {[%clk 0:03:02.9]} 4... O-O {[%clk 0:02:58.9]} 5. Nf3 {[%clk 0:03:03.5]}
5... b6 {[%clk 0:02:58.1]} 6. c4 {[%clk 0:03:00.9]} 6... Bb7 {[%clk 0:02:57.7]}
7. O-O {[%clk 0:03:01.5]} 7... c5 {[%clk 0:02:58.1]} 8. d4 {[%clk 0:03:00.9]}
8... cxd4 {[%clk 0:02:57.7]} 9. Qxd4 {[%clk 0:03:01.8]} 9... Nc6 {[%clk
0:02:53.1]} 10. Qh4 {[%clk 0:03:02.3]} 10... d6 {[%clk 0:02:40.8]} 11. Nc3
{[%clk 0:03:01.8]} 11... Qc8 {[%clk 0:02:23.1]} 12. Nd5 {[%clk 0:02:54.8]} 12...
Qd8 {[%clk 0:02:01.7]} 13. Nxf6+ {[%clk 0:02:52.8]} 13... Bxf6 {[%clk
0:01:57.5]} 14. Bxf6 {[%clk 0:02:46.3]} 14... exf6 {[%clk 0:01:58.4]} 15. Rad1
{[%clk 0:02:46.4]} 15... Qe7 {[%clk 0:01:58]} 16. Rd2 {[%clk 0:02:46.2]} 16...
Ne5 {[%clk 0:01:50.4]} 17. Nxe5 {[%clk 0:02:43.2]} 17... Bxg2 {[%clk 0:01:43.1]}
18. Ng4 {[%clk 0:02:39]} 18... Qb7 {[%clk 0:01:22.1]} 19. Nxf6+ {[%clk
0:02:28.7]} 19... Kg7 {[%clk 0:01:22.6]} 20. Rxd6 {[%clk 0:02:09.5]} 20... h6
{[%clk 0:01:06.7]} 21. Qd4 {[%clk 0:02:05.9]} 21... Rg8 {[%clk 0:00:56.6]} 22.
Nd5+ {[%clk 0:02:02.6]} 1-0

[Event "Late-Titled-Tuesday-Blitz-February-27-2024"]
[Site "Chess.com"]
[Date "2024.02.27"]
[Round "4"]
[White "Evandro_Barbosa"]
[Black "almaguerjm"]
[Result "1-0"]
[WhiteElo "2670"]
[BlackElo "2456"]
[TimeControl "180+1"]
[EndTime "14:37:06 PST"]
[Termination "Evandro_Barbosa won by resignation"]

1. e4 {[%clk 0:03:00.9]} 1... e5 {[%clk 0:02:50.2]} 2. Nf3 {[%clk 0:02:58.5]}
2... Nc6 {[%clk 0:02:50]} 3. d4 {[%clk 0:02:54.3]} 3... exd4 {[%clk 0:02:50.2]}
4. Nxd4 {[%clk 0:02:54.6]} 4... Nf6 {[%clk 0:02:48.6]} 5. Nxc6 {[%clk
0:02:52.5]} 5... bxc6 {[%clk 0:02:49.5]} 6. e5 {[%clk 0:02:51.6]} 6... Qe7
{[%clk 0:02:49.9]} 7. Qe2 {[%clk 0:02:50.5]} 7... Nd5 {[%clk 0:02:49.5]} 8. Nd2
{[%clk 0:02:50.8]} 8... Qe6 {[%clk 0:02:08.6]} 9. Nf3 {[%clk 0:02:49.1]} 9... a5
{[%clk 0:02:05.5]} 10. c4 {[%clk 0:02:42.8]} 10... Nb6 {[%clk 0:02:03.4]} 11.
Qe4 {[%clk 0:02:23.8]} 11... d5 {[%clk 0:01:50.3]} 12. cxd5 {[%clk 0:02:20.4]}
12... cxd5 {[%clk 0:01:45.5]} 13. Qf4 {[%clk 0:02:19.9]} 13... Bb4+ {[%clk
0:01:43.9]} 14. Bd2 {[%clk 0:02:19.3]} 14... Bxd2+ {[%clk 0:01:41.6]} 15. Qxd2
{[%clk 0:02:18.9]} 15... O-O {[%clk 0:01:40.3]} 16. Bd3 {[%clk 0:02:18.5]} 16...
Nc4 {[%clk 0:01:30.8]} 17. Qc3 {[%clk 0:02:04.5]} 17... Nxe5 {[%clk 0:01:16.6]}
18. Bxh7+ {[%clk 0:01:41.4]} 18... Kxh7 {[%clk 0:01:08.7]} 19. Ng5+ {[%clk
0:01:40.2]} 1-0

[Event "Late-Titled-Tuesday-Blitz-February-27-2024"]
[Site "Chess.com"]
[Date "2024.02.27"]
[Round "4"]
[White "MKlose11"]
[Black "stollenmonster"]
[Result "0-1"]
[WhiteElo "2598"]
[BlackElo "2866"]
[TimeControl "180+1"]
[EndTime "14:37:41 PST"]
[Termination "stollenmonster won by resignation"]

1. e4 {[%clk 0:03:00.9]} 1... c5 {[%clk 0:02:59.7]} 2. Nc3 {[%clk 0:03:00.5]}
2... Nc6 {[%clk 0:02:59.4]} 3. g3 {[%clk 0:03:01.4]} 3... g6 {[%clk 0:02:59.3]}
4. Bg2 {[%clk 0:03:02.3]} 4... Bg7 {[%clk 0:02:59.9]} 5. d3 {[%clk 0:03:02]}
5... e6 {[%clk 0:03:00.2]} 6. Be3 {[%clk 0:03:02.2]} 6... Qb6 {[%clk 0:02:53.6]}
7. Rb1 {[%clk 0:02:50.4]} 7... Nge7 {[%clk 0:02:51.2]} 8. Nge2 {[%clk
0:02:49.1]} 8... Nd4 {[%clk 0:02:51.3]} 9. O-O {[%clk 0:02:48.5]} 9... O-O
{[%clk 0:02:51.8]} 10. Qd2 {[%clk 0:02:47.2]} 10... Re8 {[%clk 0:02:47.8]} 11.
Nd1 {[%clk 0:02:40.9]} 11... d5 {[%clk 0:02:44.6]} 12. c3 {[%clk 0:02:35.5]}
12... Nxe2+ {[%clk 0:02:44.5]} 13. Qxe2 {[%clk 0:02:35.2]} 13... Bd7 {[%clk
0:02:43.5]} 14. Qc2 {[%clk 0:02:22.6]} 14... Rac8 {[%clk 0:02:38.3]} 15. Qd2
{[%clk 0:02:08.2]} 15... Bb5 {[%clk 0:02:34]} 16. b4 {[%clk 0:01:52.7]} 16...
Qa6 {[%clk 0:02:26.6]} 17. Nb2 {[%clk 0:01:27.3]} 17... cxb4 {[%clk 0:02:04.6]}
18. cxb4 {[%clk 0:01:20]} 18... dxe4 {[%clk 0:02:03.9]} 19. Bxe4 {[%clk
0:01:17]} 19... Qxa2 {[%clk 0:02:02.5]} 20. Bxb7 {[%clk 0:01:13.9]} 20... Rcd8
{[%clk 0:02:02.5]} 21. Be4 {[%clk 0:01:12.3]} 21... Nd5 {[%clk 0:01:54.4]} 22.
Bh6 {[%clk 0:01:08]} 22... Bxh6 {[%clk 0:01:48.9]} 23. Qxh6 {[%clk 0:01:06.7]}
23... Nc3 {[%clk 0:01:49.3]} 24. Ra1 {[%clk 0:00:56.9]} 24... Qxb2 {[%clk
0:01:47]} 25. Rxa7 {[%clk 0:00:57.8]} 25... Nxe4 {[%clk 0:01:33.8]} 26. dxe4
{[%clk 0:00:52.1]} 26... Bxf1 {[%clk 0:01:33.2]} 0-1

[Event "Late-Titled-Tuesday-Blitz-February-27-2024"]
[Site "Chess.com"]
[Date "2024.02.27"]
[Round "4"]
[White "ProChessWICTH"]
[Black "AlexPapasimakopoulos"]
[Result "1-0"]
[WhiteElo "2561"]
[BlackElo "2725"]
[TimeControl "180+1"]
[EndTime "14:37:43 PST"]
[Termination "ProChessWICTH won by resignation"]

1. d4 {[%clk 0:03:00.9]} 1... Nf6 {[%clk 0:02:58.6]} 2. c4 {[%clk 0:03:01.6]}
2... e6 {[%clk 0:02:58.6]} 3. Nc3 {[%clk 0:03:02.2]} 3... Bb4 {[%clk 0:02:59]}
4. Bg5 {[%clk 0:03:02.8]} 4... h6 {[%clk 0:02:58.8]} 5. Bh4 {[%clk 0:03:02.1]}
5... c5 {[%clk 0:02:58.8]} 6. e3 {[%clk 0:03:00.4]} 6... Qa5 {[%clk 0:02:57.8]}
7. Rc1 {[%clk 0:02:56.8]} 7... Ne4 {[%clk 0:02:57.3]} 8. Qc2 {[%clk 0:02:54.9]}
8... d5 {[%clk 0:02:51.8]} 9. cxd5 {[%clk 0:02:53]} 9... exd5 {[%clk 0:02:51.5]}
10. Bd3 {[%clk 0:02:52.9]} 10... O-O {[%clk 0:02:45.7]} 11. Ne2 {[%clk
0:02:51.2]} 11... f5 {[%clk 0:02:34.6]} 12. dxc5 {[%clk 0:02:44.9]} 12... Qxc5
{[%clk 0:02:27.8]} 13. O-O {[%clk 0:02:44.8]} 13... Nc6 {[%clk 0:02:26.9]} 14.
Nxd5 {[%clk 0:02:22.9]} 14... Qxc2 {[%clk 0:02:26.4]} 15. Bxc2 {[%clk
0:02:19.5]} 15... Bd6 {[%clk 0:02:24.9]} 16. f3 {[%clk 0:02:16.8]} 16... Ng5
{[%clk 0:02:17.7]} 17. Rfd1 {[%clk 0:02:07.7]} 17... Nf7 {[%clk 0:02:09.3]} 18.
Bb3 {[%clk 0:02:04.7]} 18... Na5 {[%clk 0:02:08.2]} 19. Nf6+ {[%clk 0:01:54.8]}
19... gxf6 {[%clk 0:02:04.7]} 20. Bxf7+ {[%clk 0:01:55.4]} 20... Rxf7 {[%clk
0:02:01.5]} 21. Rxd6 {[%clk 0:01:55.9]} 21... Nc6 {[%clk 0:02:01]} 22. Nf4
{[%clk 0:01:51.9]} 22... Rd7 {[%clk 0:01:52.9]} 23. Rxf6 {[%clk 0:01:49.7]}
23... Kh7 {[%clk 0:01:53]} 24. Rf8 {[%clk 0:01:47.4]} 24... Rg7 {[%clk
0:01:45.7]} 25. Bf6 {[%clk 0:01:45]} 25... a6 {[%clk 0:01:32.5]} 26. Bxg7 {[%clk
0:01:32.8]} 26... Kxg7 {[%clk 0:01:33.4]} 27. Ne6+ {[%clk 0:01:31.1]} 27... Kg6
{[%clk 0:01:33]} 28. Kf2 {[%clk 0:01:07.5]} 28... Rb8 {[%clk 0:01:33.2]} 29. Nd4
{[%clk 0:01:04.3]} 29... Ne5 {[%clk 0:01:30.6]} 30. Rcxc8 {[%clk 0:01:02.1]} 1-0

[Event "Late-Titled-Tuesday-Blitz-February-27-2024"]
[Site "Chess.com"]
[Date "2024.02.27"]
[Round "4"]
[White "Pelusiansky"]
[Black "nobodyperfect13"]
[Result "1-0"]
[WhiteElo "2544"]
[BlackElo "2185"]
[TimeControl "180+1"]
[EndTime "14:37:53 PST"]
[Termination "Pelusiansky won by resignation"]

1. d4 {[%clk 0:03:00.9]} 1... Nf6 {[%clk 0:02:30.8]} 2. c4 {[%clk 0:03:00.7]}
2... e6 {[%clk 0:02:30.4]} 3. Nc3 {[%clk 0:03:00.9]} 3... Bb4 {[%clk 0:02:29.7]}
4. e3 {[%clk 0:03:01.2]} 4... O-O {[%clk 0:02:26.1]} 5. Bd3 {[%clk 0:03:01.4]}
5... c5 {[%clk 0:02:24.9]} 6. Ne2 {[%clk 0:03:00.9]} 6... d5 {[%clk 0:02:22.8]}
7. cxd5 {[%clk 0:03:00.8]} 7... exd5 {[%clk 0:02:19]} 8. dxc5 {[%clk 0:02:57.9]}
8... Na6 {[%clk 0:02:17.6]} 9. O-O {[%clk 0:02:51.6]} 9... Nxc5 {[%clk
0:02:16.8]} 10. Bc2 {[%clk 0:02:52.2]} 10... Bg4 {[%clk 0:02:08.3]} 11. f3
{[%clk 0:02:43.1]} 11... Bh5 {[%clk 0:02:03.2]} 12. Qd4 {[%clk 0:02:31.3]} 12...
Bxc3 {[%clk 0:02:00.5]} 13. Nxc3 {[%clk 0:02:29.4]} 13... Ne6 {[%clk 0:01:58.3]}
14. Qd2 {[%clk 0:02:14.3]} 14... Bg6 {[%clk 0:01:55.8]} 15. Bxg6 {[%clk
0:02:13.9]} 15... hxg6 {[%clk 0:01:56.7]} 16. Ne2 {[%clk 0:02:13.1]} 16... d4
{[%clk 0:01:55.3]} 17. Nxd4 {[%clk 0:02:10.8]} 17... Nxd4 {[%clk 0:01:55.1]} 18.
exd4 {[%clk 0:02:10.7]} 18... Nd5 {[%clk 0:01:54.5]} 19. b3 {[%clk 0:02:08.1]}
19... Qd7 {[%clk 0:01:52.9]} 20. Bb2 {[%clk 0:02:05.6]} 20... Rfe8 {[%clk
0:01:52.6]} 21. Rfe1 {[%clk 0:02:04.7]} 21... Qf5 {[%clk 0:01:48.1]} 22. Re5
{[%clk 0:01:59.4]} 22... Qd7 {[%clk 0:01:45.2]} 23. Rae1 {[%clk 0:01:58.6]}
23... f6 {[%clk 0:01:45.1]} 24. R5e4 {[%clk 0:01:50.9]} 24... Rec8 {[%clk
0:01:42]} 25. h4 {[%clk 0:01:45.2]} 25... Rc6 {[%clk 0:01:41.1]} 26. Rc1 {[%clk
0:01:37.1]} 26... Rac8 {[%clk 0:01:40]} 27. Rxc6 {[%clk 0:01:35.5]} 27... Qxc6
{[%clk 0:01:40.1]} 28. Qe2 {[%clk 0:01:32.2]} 28... Kf7 {[%clk 0:01:35.8]} 29.
h5 {[%clk 0:01:27.2]} 29... gxh5 {[%clk 0:01:34.1]} 30. f4 {[%clk 0:01:27.9]}
30... Qc2 {[%clk 0:01:29.2]} 31. Qxh5+ {[%clk 0:01:27.7]} 31... Kg8 {[%clk
0:01:27.6]} 32. Re8+ {[%clk 0:01:21.2]} 32... Rxe8 {[%clk 0:01:27.2]} 33. Qxe8+
{[%clk 0:01:21.9]} 33... Kh7 {[%clk 0:01:27.4]} 34. Qh5+ {[%clk 0:01:22.4]}
34... Kg8 {[%clk 0:01:27.2]} 35. Qxd5+ {[%clk 0:01:23.1]} 1-0

[Event "Late-Titled-Tuesday-Blitz-February-27-2024"]
[Site "Chess.com"]
[Date "2024.02.27"]
[Round "4"]
[White "mac0504"]
[Black "Capablanca_Oujda_2021"]
[Result "1-0"]
[WhiteElo "2708"]
[BlackElo "2528"]
[TimeControl "180+1"]
[EndTime "14:38:09 PST"]
[Termination "mac0504 won by resignation"]

1. c4 {[%clk 0:03:00.5]} 1... Nf6 {[%clk 0:02:59.8]} 2. Nc3 {[%clk 0:03:00.4]}
2... e6 {[%clk 0:03:00.3]} 3. e4 {[%clk 0:03:00.7]} 3... d6 {[%clk 0:02:59.7]}
4. d4 {[%clk 0:03:00.8]} 4... g6 {[%clk 0:02:59.4]} 5. f4 {[%clk 0:02:58.7]}
5... Bg7 {[%clk 0:02:58.1]} 6. Nf3 {[%clk 0:02:59.1]} 6... O-O {[%clk
0:02:57.7]} 7. Be3 {[%clk 0:02:55]} 7... Nbd7 {[%clk 0:02:57.2]} 8. Qd2 {[%clk
0:02:53.4]} 8... a6 {[%clk 0:02:54.3]} 9. h3 {[%clk 0:02:46.2]} 9... Rb8 {[%clk
0:02:48.4]} 10. e5 {[%clk 0:02:45.9]} 10... Nh5 {[%clk 0:02:39.9]} 11. Ne2
{[%clk 0:02:32]} 11... dxe5 {[%clk 0:02:17.6]} 12. dxe5 {[%clk 0:02:23.4]} 12...
Bh8 {[%clk 0:01:49]} 13. g4 {[%clk 0:02:23.2]} 13... Ng7 {[%clk 0:01:49.1]} 14.
O-O-O {[%clk 0:02:23.3]} 14... f6 {[%clk 0:01:48.6]} 15. Bg2 {[%clk 0:02:19.2]}
15... fxe5 {[%clk 0:01:48.5]} 16. Nxe5 {[%clk 0:02:19.2]} 16... Rf7 {[%clk
0:01:17.2]} 17. Nxf7 {[%clk 0:02:16.8]} 17... Kxf7 {[%clk 0:01:18.1]} 18. Rhf1
{[%clk 0:02:12.3]} 18... Qe7 {[%clk 0:01:16.3]} 19. Nd4 {[%clk 0:02:05.7]} 19...
Kg8 {[%clk 0:01:13.7]} 20. f5 {[%clk 0:02:01.4]} 20... exf5 {[%clk 0:01:09.6]}
21. Bd5+ {[%clk 0:02:00]} 21... Kf8 {[%clk 0:01:07]} 22. gxf5 {[%clk 0:01:59.2]}
22... Nf6 {[%clk 0:00:51.4]} 23. fxg6 {[%clk 0:01:55.9]} 23... hxg6 {[%clk
0:00:52.3]} 24. Bh6 {[%clk 0:01:40.9]} 24... c6 {[%clk 0:00:38.9]} 25. Rde1
{[%clk 0:01:38.5]} 25... Qd6 {[%clk 0:00:24]} 26. Rxf6+ {[%clk 0:01:35.1]} 26...
Qxf6 {[%clk 0:00:23.4]} 27. Qb4+ {[%clk 0:01:35.9]} 1-0

[Event "Late-Titled-Tuesday-Blitz-February-27-2024"]
[Site "Chess.com"]
[Date "2024.02.27"]
[Round "4"]
[White "kripri"]
[Black "lilylg"]
[Result "1-0"]
[WhiteElo "2352"]
[BlackElo "2142"]
[TimeControl "180+1"]
[EndTime "14:38:12 PST"]
[Termination "kripri won by resignation"]

1. e4 {[%clk 0:03:00.9]} 1... c6 {[%clk 0:02:59.6]} 2. d4 {[%clk 0:02:55.2]}
2... d5 {[%clk 0:03:00.2]} 3. e5 {[%clk 0:02:55.1]} 3... Bf5 {[%clk 0:02:59.8]}
4. Nf3 {[%clk 0:02:55.5]} 4... e6 {[%clk 0:02:55.5]} 5. Be2 {[%clk 0:02:55.6]}
5... c5 {[%clk 0:02:55.7]} 6. Be3 {[%clk 0:02:55]} 6... Nc6 {[%clk 0:02:51.5]}
7. O-O {[%clk 0:02:52.5]} 7... Qb6 {[%clk 0:02:42.5]} 8. Nc3 {[%clk 0:02:51.7]}
8... Qxb2 {[%clk 0:02:34.8]} 9. Nb5 {[%clk 0:02:51.3]} 9... Rc8 {[%clk
0:02:16.1]} 10. dxc5 {[%clk 0:02:29.6]} 10... Nxe5 {[%clk 0:01:52.2]} 11. Nxe5
{[%clk 0:02:24.9]} 11... Qxe5 {[%clk 0:01:51.7]} 12. Nxa7 {[%clk 0:02:15.3]}
12... Ra8 {[%clk 0:01:51.1]} 13. Bb5+ {[%clk 0:02:01]} 13... Kd8 {[%clk
0:01:47.4]} 14. c6 {[%clk 0:02:00.6]} 14... Rxa7 {[%clk 0:01:37.8]} 15. Bxa7
{[%clk 0:01:55.7]} 15... bxc6 {[%clk 0:01:38]} 16. Bxc6 {[%clk 0:01:53.1]} 16...
Qc7 {[%clk 0:01:37.2]} 17. Bxd5 {[%clk 0:01:50.9]} 17... exd5 {[%clk 0:01:27.7]}
18. Qxd5+ {[%clk 0:01:50]} 18... Ke8 {[%clk 0:01:17.2]} 19. Qxf5 {[%clk
0:01:39.9]} 19... Bd6 {[%clk 0:01:04.6]} 20. Rfe1+ {[%clk 0:01:38.4]} 20... Ne7
{[%clk 0:01:04.2]} 21. Qb5+ {[%clk 0:01:34.9]} 21... Kf8 {[%clk 0:01:00.4]} 22.
Bb6 {[%clk 0:01:18.2]} 22... Qb8 {[%clk 0:00:53.6]} 23. Rad1 {[%clk 0:01:14.9]}
23... g6 {[%clk 0:00:46.8]} 24. Rxd6 {[%clk 0:01:10.9]} 24... Qxd6 {[%clk
0:00:43.6]} 25. Bc5 {[%clk 0:01:11.3]} 1-0

[Event "Late-Titled-Tuesday-Blitz-February-27-2024"]
[Site "Chess.com"]
[Date "2024.02.27"]
[Round "4"]
[White "BogdanDeac"]
[Black "ozates"]
[Result "1-0"]
[WhiteElo "2951"]
[BlackElo "2613"]
[TimeControl "180+1"]
[EndTime "14:38:24 PST"]
[Termination "BogdanDeac won by resignation"]

1. d4 {[%clk 0:03:00.9]} 1... Nf6 {[%clk 0:02:59.1]} 2. Nf3 {[%clk 0:03:00.7]}
2... d5 {[%clk 0:02:59]} 3. c4 {[%clk 0:03:00.3]} 3... c6 {[%clk 0:02:59.4]} 4.
Nc3 {[%clk 0:02:59.3]} 4... e6 {[%clk 0:02:59.4]} 5. Bg5 {[%clk 0:02:59]} 5...
Nbd7 {[%clk 0:02:59.8]} 6. e3 {[%clk 0:02:58]} 6... Qa5 {[%clk 0:02:59.5]} 7.
Nd2 {[%clk 0:02:57.7]} 7... Bb4 {[%clk 0:02:57]} 8. Qc2 {[%clk 0:02:57.7]} 8...
dxc4 {[%clk 0:02:56.9]} 9. Bxf6 {[%clk 0:02:56.9]} 9... Nxf6 {[%clk 0:02:57.8]}
10. Nxc4 {[%clk 0:02:57]} 10... Qc7 {[%clk 0:02:58]} 11. g3 {[%clk 0:02:57.1]}
11... c5 {[%clk 0:02:56.2]} 12. Bg2 {[%clk 0:02:52.7]} 12... Bd7 {[%clk
0:02:34.6]} 13. Qb3 {[%clk 0:02:48.8]} 13... O-O {[%clk 0:02:28.7]} 14. O-O
{[%clk 0:02:48.2]} 14... Bxc3 {[%clk 0:02:19]} 15. bxc3 {[%clk 0:02:46.5]} 15...
Rab8 {[%clk 0:01:58.2]} 16. Ne5 {[%clk 0:02:46.1]} 16... b5 {[%clk 0:01:47.9]}
17. Nxd7 {[%clk 0:02:45.2]} 17... Nxd7 {[%clk 0:01:47.8]} 18. Rfc1 {[%clk
0:02:45.7]} 18... c4 {[%clk 0:01:45.3]} 19. Qb2 {[%clk 0:02:40.5]} 19... a5
{[%clk 0:01:45.6]} 20. Rab1 {[%clk 0:02:39.4]} 20... Rfc8 {[%clk 0:01:42.2]} 21.
Qc2 {[%clk 0:02:38.6]} 21... Qd6 {[%clk 0:01:36.9]} 22. Qe2 {[%clk 0:02:34.7]}
22... Qa3 {[%clk 0:01:33]} 23. Qb2 {[%clk 0:02:34.7]} 23... Qd6 {[%clk
0:01:29.1]} 24. h3 {[%clk 0:02:30.2]} 24... g6 {[%clk 0:01:23.8]} 25. Kh2 {[%clk
0:02:24.3]} 25... b4 {[%clk 0:01:23.1]} 26. Qc2 {[%clk 0:02:10.6]} 26... Nb6
{[%clk 0:01:05.9]} 27. e4 {[%clk 0:02:10.1]} 27... e5 {[%clk 0:01:03]} 28. dxe5
{[%clk 0:02:08.3]} 28... Qxe5 {[%clk 0:01:03.8]} 29. cxb4 {[%clk 0:02:09]} 29...
axb4 {[%clk 0:00:51.7]} 30. Rxb4 {[%clk 0:02:09.9]} 30... Qc5 {[%clk 0:00:52.4]}
31. a3 {[%clk 0:01:52]} 31... c3 {[%clk 0:00:50.9]} 32. Rb3 {[%clk 0:01:46.8]}
32... Na4 {[%clk 0:00:21.5]} 33. Rxb8 {[%clk 0:01:44.8]} 33... Rxb8 {[%clk
0:00:22.4]} 34. Qxa4 {[%clk 0:01:44.9]} 34... Qxf2 {[%clk 0:00:22.7]} 35. Qc2
{[%clk 0:01:43.5]} 1-0

[Event "Late-Titled-Tuesday-Blitz-February-27-2024"]
[Site "Chess.com"]
[Date "2024.02.27"]
[Round "4"]
[White "bazar-wokzal"]
[Black "SilverSwords13"]
[Result "0-1"]
[WhiteElo "2615"]
[BlackElo "2476"]
[TimeControl "180+1"]
[EndTime "14:38:26 PST"]
[Termination "SilverSwords13 won by checkmate"]

1. e4 {[%clk 0:03:00.9]} 1... c5 {[%clk 0:02:57.8]} 2. c3 {[%clk 0:03:00.5]}
2... Nf6 {[%clk 0:02:57.6]} 3. e5 {[%clk 0:03:00.8]} 3... Nd5 {[%clk 0:02:57.4]}
4. d4 {[%clk 0:03:01.4]} 4... cxd4 {[%clk 0:02:58.1]} 5. cxd4 {[%clk 0:03:01.9]}
5... e6 {[%clk 0:02:58.9]} 6. Nc3 {[%clk 0:03:01.8]} 6... Nxc3 {[%clk
0:02:56.2]} 7. bxc3 {[%clk 0:03:02.7]} 7... d6 {[%clk 0:02:57]} 8. f4 {[%clk
0:03:02.5]} 8... Qc7 {[%clk 0:02:56.1]} 9. Bd2 {[%clk 0:03:02.5]} 9... Be7
{[%clk 0:02:53.8]} 10. Nf3 {[%clk 0:03:02.7]} 10... O-O {[%clk 0:02:49.8]} 11.
Bd3 {[%clk 0:03:02.9]} 11... b6 {[%clk 0:02:50]} 12. h4 {[%clk 0:03:02.8]} 12...
Ba6 {[%clk 0:02:37.4]} 13. Bxh7+ {[%clk 0:03:01.8]} 13... Kxh7 {[%clk
0:02:36.9]} 14. Ng5+ {[%clk 0:03:02.5]} 14... Kg8 {[%clk 0:02:35.9]} 15. Rh3
{[%clk 0:02:57.3]} 15... g6 {[%clk 0:02:04.1]} 16. Qg4 {[%clk 0:02:29.4]} 16...
Qc4 {[%clk 0:01:55.1]} 17. Kf2 {[%clk 0:02:28.6]} 17... dxe5 {[%clk 0:01:39.1]}
18. fxe5 {[%clk 0:02:20.9]} 18... Nd7 {[%clk 0:01:38.9]} 19. h5 {[%clk
0:02:14.6]} 19... Nxe5 {[%clk 0:01:34.9]} 20. Qe4 {[%clk 0:02:08.4]} 20... Nd3+
{[%clk 0:00:48.3]} 21. Kg1 {[%clk 0:02:05]} 21... Qd5 {[%clk 0:00:46.3]} 22. Qh4
{[%clk 0:01:55]} 22... Kg7 {[%clk 0:00:28.3]} 23. Rf1 {[%clk 0:01:38.3]} 23...
Ne5 {[%clk 0:00:27.8]} 24. dxe5 {[%clk 0:01:24.8]} 24... Bxf1 {[%clk 0:00:27.4]}
25. hxg6 {[%clk 0:01:08.9]} 25... Qxg2# {[%clk 0:00:26.5]} 0-1

[Event "Late-Titled-Tuesday-Blitz-February-27-2024"]
[Site "Chess.com"]
[Date "2024.02.27"]
[Round "4"]
[White "Peroncio"]
[Black "sergiochess83"]
[Result "0-1"]
[WhiteElo "2419"]
[BlackElo "2893"]
[TimeControl "180+1"]
[EndTime "14:38:26 PST"]
[Termination "sergiochess83 won by resignation"]

1. e4 {[%clk 0:03:00.9]} 1... e6 {[%clk 0:02:56.2]} 2. d4 {[%clk 0:03:00.2]}
2... d5 {[%clk 0:02:56.8]} 3. Nc3 {[%clk 0:02:53.8]} 3... Nf6 {[%clk 0:02:55]}
4. e5 {[%clk 0:02:46.8]} 4... Nfd7 {[%clk 0:02:55]} 5. Nce2 {[%clk 0:02:46.8]}
5... c5 {[%clk 0:02:54.6]} 6. c3 {[%clk 0:02:46.1]} 6... Nc6 {[%clk 0:02:54]} 7.
f4 {[%clk 0:02:45.8]} 7... b5 {[%clk 0:02:50.6]} 8. Nf3 {[%clk 0:02:45.3]} 8...
a5 {[%clk 0:02:50.7]} 9. h4 {[%clk 0:02:43]} 9... Ba6 {[%clk 0:02:38.2]} 10. Be3
{[%clk 0:02:42]} 10... b4 {[%clk 0:02:37.9]} 11. Kf2 {[%clk 0:02:40]} 11... Be7
{[%clk 0:02:28.9]} 12. h5 {[%clk 0:02:39.3]} 12... O-O {[%clk 0:02:25.8]} 13. g4
{[%clk 0:02:31.7]} 13... f6 {[%clk 0:02:21.7]} 14. Kg2 {[%clk 0:02:23.8]} 14...
Rb8 {[%clk 0:01:59.3]} 15. f5 {[%clk 0:02:04.4]} 15... fxe5 {[%clk 0:01:48.4]}
16. fxe6 {[%clk 0:02:00.4]} 16... Nf6 {[%clk 0:01:48.5]} 17. dxe5 {[%clk
0:01:11]} 17... Nxg4 {[%clk 0:01:47.7]} 18. Bg1 {[%clk 0:01:06.1]} 18... bxc3
{[%clk 0:01:43]} 19. bxc3 {[%clk 0:01:05.3]} 19... Ncxe5 {[%clk 0:01:31.9]} 20.
Nxe5 {[%clk 0:00:57.2]} 20... Nxe5 {[%clk 0:01:32.8]} 21. h6 {[%clk 0:00:46.5]}
21... d4 {[%clk 0:01:18.8]} 22. Ng3 {[%clk 0:00:37.9]} 22... Qd5+ {[%clk
0:01:14.2]} 23. Kh2 {[%clk 0:00:37.8]} 23... Rb2+ {[%clk 0:01:07.7]} 24. Kh3
{[%clk 0:00:34.3]} 24... Bxf1+ {[%clk 0:01:04.6]} 0-1